[Event "Mistrovství Čech mládeže 2023 - HD12"]
[Site "Harrachov, Czech Republic"]
[Date "2023.10.24"]
[Round "5.18"]
[White "Frantsev, Iegor"]
[Black "Vaníčková, Natálie"]
[Result "1-0"]
[TimeControl "90m + 30s"]
[WhiteElo "1397"]
[BlackElo "1122"]

1. e4 {[%clk 01:30:53]} {[%emt 00:00:06]} e5 {[%clk 01:30:43]} {[%emt
00:00:17]} 2. Bc4 {[%clk 01:30:55]} {[%emt 00:00:28]} Bc5 {[%clk 01:29:57]}
{[%emt 00:01:16]} 3. Nf3 {[%clk 01:30:35]} {[%emt 00:00:50]} Nc6 {[%clk
01:28:38]} {[%emt 00:01:48]} 4. c3 {[%clk 01:30:15]} {[%emt 00:00:50]} d6
{[%clk 01:27:47]} {[%emt 00:01:22]} 5. d3 {[%clk 01:30:21]} {[%emt 00:00:24]}
Nf6 {[%clk 01:25:50]} {[%emt 00:02:25]} 6. h3 {[%clk 01:29:52]} {[%emt
00:01:01]} O-O {[%clk 01:24:19]} {[%emt 00:02:00]} 7. Nbd2 {[%clk 01:28:47]}
{[%emt 00:01:31]} a6 {[%clk 01:21:36]} {[%emt 00:03:18]} 8. Bb3 {[%clk
01:28:52]} {[%emt 00:00:23]} b5 {[%clk 01:19:35]} {[%emt 00:02:33]} 9. Nf1
{[%clk 01:28:15]} {[%emt 00:01:07]} Ne7 {[%clk 01:17:31]} {[%emt 00:02:33]} 10.
g4 {[%clk 01:27:45]} {[%emt 00:01:00]} d5 {[%clk 01:16:03]} {[%emt 00:01:58]}
11. Qe2 {[%clk 01:24:09]} {[%emt 00:04:05]} dxe4 {[%clk 01:13:51]} {[%emt
00:02:42]} 12. dxe4 {[%clk 01:24:02]} {[%emt 00:00:39]} Bb7 {[%clk 01:13:52]}
{[%emt 00:00:29]} 13. Ng3 {[%clk 01:23:42]} {[%emt 00:00:49]} Ng6 {[%clk
01:12:04]} {[%emt 00:02:19]} 14. Bd2 {[%clk 01:17:56]} {[%emt 00:06:16]} Qd7
{[%clk 01:04:22]} {[%emt 00:08:12]} 15. O-O-O {[%clk 01:15:43]} {[%emt
00:02:42]} Qc6 {[%clk 00:59:02]} {[%emt 00:05:50]} 16. Bc2 {[%clk 01:15:25]}
{[%emt 00:00:49]} a5 {[%clk 00:49:12]} {[%emt 00:10:20]} 17. g5 {[%clk
01:14:40]} {[%emt 00:01:14]} Nd7 {[%clk 00:45:31]} {[%emt 00:04:11]} 18. Nf5
{[%clk 01:13:36]} {[%emt 00:01:31]} b4 {[%clk 00:44:44]} {[%emt 00:01:21]} 19.
h4 {[%clk 01:09:28]} {[%emt 00:04:37]} bxc3 {[%clk 00:42:35]} {[%emt 00:02:39]}
20. Bxc3 {[%clk 01:07:23]} {[%emt 00:02:36]} Ba6 {[%clk 00:36:17]} {[%emt
00:06:48]} 21. Qd2 {[%clk 01:03:10]} {[%emt 00:04:40]} Nb6 {[%clk 00:30:42]}
{[%emt 00:06:07]} 22. Nxe5 {[%clk 00:59:22]} {[%emt 00:04:17]} Nxe5 {[%clk
00:26:55]} {[%emt 00:04:18]} 23. Bxe5 {[%clk 00:56:24]} {[%emt 00:03:28]} Nc4
{[%clk 00:25:15]} {[%emt 00:02:10]} 24. Qc3 {[%clk 00:36:23]} {[%emt 00:20:31]}
Bb4 {[%clk 00:23:35]} {[%emt 00:02:10]} 25. Qxb4 {[%clk 00:30:51]} {[%emt
00:06:03]} axb4 {[%clk 00:21:12]} {[%emt 00:02:52]} 26. Ne7+ {[%clk 00:30:58]}
{[%emt 00:00:21]} Kh8 {[%clk 00:20:37]} {[%emt 00:01:07]} 27. Nxc6 {[%clk
00:31:18]} {[%emt 00:00:10]} Bb7 {[%clk 00:20:53]} {[%emt 00:00:13]} 28. Bb3
{[%clk 00:28:08]} {[%emt 00:03:41]} Bxc6 {[%clk 00:17:42]} {[%emt 00:03:40]} 29.
Bxc4 {[%clk 00:27:49]} {[%emt 00:00:49]} Bxe4 {[%clk 00:18:03]} {[%emt
00:00:08]} 30. Rhe1 {[%clk 00:26:44]} {[%emt 00:01:30]} Bf3 {[%clk 00:18:18]}
{[%emt 00:00:21]} 31. Rd3 {[%clk 00:26:24]} {[%emt 00:00:49]} Bh5 {[%clk
00:18:20]} {[%emt 00:00:28]} 32. Rd7 {[%clk 00:17:54]} {[%emt 00:09:01]} Rae8
{[%clk 00:17:22]} {[%emt 00:01:27]} 33. Rxc7 {[%clk 00:13:15]} {[%emt
00:05:11]} f6 {[%clk 00:17:28]} {[%emt 00:00:24]} 34. gxf6 {[%clk 00:13:30]}
1-0

[Event "Mistrovství Čech mládeže 2023 - HD12"]
[Site "Harrachov, Czech Republic"]
[Date "2023.10.24"]
[Round "5.19"]
[White "Sengrová, Žofie"]
[Black "Vo, Daniel"]
[Result "0-1"]
[TimeControl "90m + 30s"]
[WhiteElo "1124"]
[BlackElo "1341"]

1. e4 {[%clk 01:30:55]} {[%emt 00:00:02]} c5 {[%clk 01:30:57]} {[%emt
00:00:05]} 2. Bb5 {[%clk 01:31:00]} {[%emt 00:00:24]} a6 {[%clk 01:31:10]}
{[%emt 00:00:17]} 3. Bc4 {[%clk 01:30:50]} {[%emt 00:00:38]} e6 {[%clk
01:31:27]} {[%emt 00:00:15]} 4. d3 {[%clk 01:30:48]} {[%emt 00:00:31]} b5
{[%clk 01:31:32]} {[%emt 00:00:26]} 5. Bb3 {[%clk 01:30:11]} {[%emt 00:01:06]}
Bb7 {[%clk 01:31:43]} {[%emt 00:00:20]} 6. Nc3 {[%clk 01:29:18]} {[%emt
00:01:22]} Nf6 {[%clk 01:31:56]} {[%emt 00:00:18]} 7. f3 {[%clk 01:28:57]}
{[%emt 00:00:51]} Nc6 {[%clk 01:32:10]} {[%emt 00:00:16]} 8. Nge2 {[%clk
01:29:08]} {[%emt 00:00:17]} Be7 {[%clk 01:32:16]} {[%emt 00:00:26]} 9. Bg5
{[%clk 01:28:47]} {[%emt 00:00:46]} O-O {[%clk 01:32:22]} {[%emt 00:00:29]} 10.
O-O {[%clk 01:29:04]} {[%emt 00:00:11]} h6 {[%clk 01:31:52]} {[%emt 00:01:02]}
11. Bxf6 {[%clk 01:28:53]} {[%emt 00:00:41]} Bxf6 {[%clk 01:32:10]} {[%emt
00:00:12]} 12. a4 {[%clk 01:27:41]} {[%emt 00:01:41]} b4 {[%clk 01:31:44]}
{[%emt 00:00:58]} 13. Nb1 {[%clk 01:24:54]} {[%emt 00:03:17]} Bxb2 {[%clk
01:30:54]} {[%emt 00:01:20]} 14. Ra2 {[%clk 01:24:30]} {[%emt 00:00:49]} Bd4+
{[%clk 01:30:46]} {[%emt 00:00:42]} 15. Nxd4 {[%clk 01:24:39]} {[%emt
00:00:21]} Nxd4 {[%clk 01:30:57]} {[%emt 00:00:19]} 16. Nd2 {[%clk 01:24:18]}
{[%emt 00:00:51]} f5 {[%clk 01:30:22]} {[%emt 00:01:05]} 17. Qe1 {[%clk
01:23:00]} {[%emt 00:01:46]} Qb6 {[%clk 01:29:23]} {[%emt 00:01:31]} 18. Qf2
{[%clk 01:21:12]} {[%emt 00:02:10]} fxe4 {[%clk 01:28:32]} {[%emt 00:01:29]} 19.
dxe4 {[%clk 01:20:08]} {[%emt 00:01:28]} d5 {[%clk 01:27:37]} {[%emt 00:01:31]}
20. e5 {[%clk 01:20:13]} {[%emt 00:00:24]} c4 {[%clk 01:27:43]} {[%emt
00:00:26]} 21. h3 {[%clk 01:19:04]} {[%emt 00:01:37]} Qa7 {[%clk 01:27:28]}
{[%emt 00:00:46]} 22. Bxc4 {[%clk 01:18:02]} {[%emt 00:01:29]} dxc4 {[%clk
01:26:19]} {[%emt 00:01:42]} 23. Nxc4 {[%emt 00:00:26]} Bd5 {[%emt 00:01:59]}
24. Rb2 {[%clk 01:15:44]} {[%emt 00:00:50]} Bxc4 {[%clk 01:25:33]} {[%emt
00:01:50]} 25. Rd1 {[%clk 01:15:29]} {[%emt 00:00:42]} Ne2+ {[%clk 01:24:54]}
{[%emt 00:01:10]} 26. Kf1 {[%clk 01:15:15]} {[%emt 00:00:34]} Nc3+ {[%clk
01:25:04]} {[%emt 00:00:32]} 27. Ke1 {[%clk 01:15:20]} {[%emt 00:00:16]} Qxf2+
{[%clk 01:22:46]} {[%emt 00:02:56]} 28. Kxf2 {[%clk 01:15:30]} {[%emt
00:00:19]} Nxd1+ {[%clk 01:20:53]} {[%emt 00:02:24]} 29. Ke1 {[%clk 01:15:31]}
{[%emt 00:00:28]} Nxb2 {[%clk 01:16:51]} {[%emt 00:04:34]} 30. a5 {[%clk
01:15:01]} {[%emt 00:00:58]} Rf5 {[%clk 01:13:36]} {[%emt 00:03:46]} 31. f4
{[%clk 01:15:08]} {[%emt 00:00:18]} Rd8 {[%clk 01:13:27]} {[%emt 00:00:39]} 32.
g3 {[%clk 01:15:06]} {[%emt 00:00:22]} Rd1+ {[%clk 01:13:17]} {[%emt 00:00:54]}
33. Kf2 {[%emt 00:01:29]} Rd2+ {[%clk 01:12:27]} {[%emt 00:00:08]} 34. Ke1
{[%clk 01:15:21]} {[%emt 00:00:29]} Rxc2 {[%clk 01:12:18]} {[%emt 00:00:38]} 35.
g4 {[%clk 01:15:03]} {[%emt 00:00:13]} Rxf4 {[%clk 01:11:04]} {[%emt 00:02:19]}
36. h4 {[%clk 01:10:14]} {[%emt 00:02:41]} Re4# {[%emt 00:02:58]} 0-1

[Event "Mistrovství Čech mládeže 2023 - HD12"]
[Site "Harrachov, Czech Republic"]
[Date "2023.10.24"]
[Round "5.20"]
[White "Kůsová, Nikola"]
[Black "Topenčíková, Ellen"]
[Result "1-0"]
[TimeControl "90m + 30s"]
[WhiteElo "1324"]
[BlackElo "1018"]

1. e4 {[%clk 01:30:56]} {[%emt 00:00:02]} e5 {[%clk 01:30:49]} {[%emt
00:00:12]} 2. Nc3 {[%clk 01:31:20]} {[%emt 00:00:06]} Nf6 {[%clk 01:30:48]}
{[%emt 00:00:31]} 3. Bc4 {[%clk 01:31:39]} {[%emt 00:00:11]} Bb4 {[%clk
01:30:14]} {[%emt 00:01:04]} 4. Nge2 {[%clk 01:31:17]} {[%emt 00:00:52]} Bxc3
{[%clk 01:29:31]} {[%emt 00:01:13]} 5. Nxc3 {[%clk 01:31:34]} {[%emt 00:00:13]}
O-O {[%clk 01:29:50]} {[%emt 00:00:11]} 6. d3 {[%clk 01:30:35]} {[%emt
00:01:29]} d6 {[%clk 01:29:52]} {[%emt 00:00:29]} 7. O-O {[%clk 01:28:37]}
{[%emt 00:02:27]} Nc6 {[%clk 01:28:49]} {[%emt 00:01:34]} 8. f4 {[%clk
01:26:25]} {[%emt 00:02:41]} Nd4 {[%clk 01:26:02]} {[%emt 00:03:17]} 9. Nd5
{[%clk 01:23:13]} {[%emt 00:03:42]} Nxd5 {[%clk 01:22:07]} {[%emt 00:04:25]} 10.
Bxd5 {[%clk 01:22:11]} {[%emt 00:01:32]} Qe7 {[%clk 01:15:54]} {[%emt
00:06:44]} 11. c3 {[%clk 01:18:33]} {[%emt 00:04:08]} Nc6 {[%clk 01:15:01]}
{[%emt 00:01:23]} 12. fxe5 {[%clk 01:15:29]} {[%emt 00:03:33]} dxe5 {[%clk
01:13:43]} {[%emt 00:01:48]} 13. Qh5 {[%clk 01:09:35]} {[%emt 00:06:17]} Qd6
{[%clk 01:09:59]} {[%emt 00:04:21]} 14. Rxf7 {[%clk 01:03:24]} {[%emt
00:06:42]} Be6 {[%clk 01:08:24]} {[%emt 00:02:04]} 15. Bxe6 {[%clk 00:54:18]}
{[%emt 00:09:35]} Qxe6 {[%clk 01:08:16]} {[%emt 00:00:38]} 16. Rxf8+ {[%clk
00:53:59]} {[%emt 00:00:50]} Rxf8 {[%clk 01:08:16]} {[%emt 00:00:29]} 17. Be3
{[%clk 00:52:42]} {[%emt 00:01:47]} Qf6 {[%clk 01:08:07]} {[%emt 00:00:39]} 18.
Qe2 {[%clk 00:52:19]} {[%emt 00:00:53]} a6 {[%clk 01:07:44]} {[%emt 00:00:54]}
19. Rf1 {[%clk 00:51:38]} {[%emt 00:01:11]} Qe6 {[%clk 01:07:27]} {[%emt
00:00:48]} 20. Rxf8+ {[%clk 00:48:07]} {[%emt 00:04:01]} Kxf8 {[%clk 01:05:29]}
{[%emt 00:02:28]} 21. a3 {[%clk 00:47:02]} {[%emt 00:01:35]} Qa2 {[%clk
01:04:04]} {[%emt 00:01:55]} 22. Bc5+ {[%clk 00:44:13]} {[%emt 00:03:19]} Kg8
{[%clk 01:02:51]} {[%emt 00:01:42]} 23. Qf1 {[%clk 00:42:47]} {[%emt 00:01:56]}
Qf7 {[%clk 01:02:29]} {[%emt 00:00:52]} 24. Qxf7+ {[%clk 00:42:35]} {[%emt
00:00:43]} Kxf7 {[%clk 01:02:47]} {[%emt 00:00:12]} 25. Kf2 {[%clk 00:42:49]}
{[%emt 00:00:16]} b6 {[%clk 01:01:20]} {[%emt 00:01:57]} 26. Be3 {[%clk
00:42:48]} {[%emt 00:00:30]} Ke6 {[%clk 00:59:49]} {[%emt 00:02:01]} 27. b4
{[%clk 00:41:49]} {[%emt 00:01:30]} Na7 {[%clk 00:59:05]} {[%emt 00:01:14]} 28.
a4 {[%clk 00:40:12]} {[%emt 00:02:07]} Nc8 {[%clk 00:58:16]} {[%emt 00:01:18]}
29. Kf3 {[%clk 00:37:05]} {[%emt 00:03:37]} Ne7 {[%clk 00:55:43]} {[%emt
00:03:03]} 30. h4 {[%clk 00:35:13]} {[%emt 00:02:21]} Ng6 {[%clk 00:54:35]}
{[%emt 00:01:40]} 31. g3 {[%clk 00:35:22]} {[%emt 00:00:20]} b5 {[%clk
00:51:41]} {[%emt 00:03:23]} 32. axb5 {[%clk 00:33:26]} {[%emt 00:02:27]} axb5
{[%clk 00:50:22]} {[%emt 00:01:50]} 33. h5 {[%clk 00:29:42]} {[%emt 00:04:13]}
Ne7 {[%clk 00:50:06]} {[%emt 00:00:46]} 34. d4 {[%clk 00:28:47]} {[%emt
00:01:26]} Nc6 {[%clk 00:48:19]} {[%emt 00:02:16]} 35. d5+ {[%clk 00:29:06]}
{[%emt 00:00:12]} 1-0

[Event "Mistrovství Čech mládeže 2023 - HD12"]
[Site "Harrachov, Czech Republic"]
[Date "2023.10.24"]
[Round "5.21"]
[White "Melicharová, Veronika"]
[Black "Štěpánková, Linda"]
[Result "0-1"]
[TimeControl "90m + 30s"]
[WhiteElo "1108"]
[BlackElo "1281"]

1. e4 {[%clk 01:30:55]} {[%emt 00:00:04]} d5 {[%clk 01:30:49]} {[%emt
00:00:12]} 2. exd5 {[%clk 01:31:15]} {[%emt 00:00:10]} Qxd5 {[%clk 01:31:12]}
{[%emt 00:00:08]} 3. Nc3 {[%clk 01:31:29]} {[%emt 00:00:15]} Qd6 {[%clk
01:31:13]} {[%emt 00:00:29]} 4. d4 {[%clk 01:31:36]} {[%emt 00:00:23]} Nf6
{[%clk 01:29:31]} {[%emt 00:02:12]} 5. Nf3 {[%clk 01:30:21]} {[%emt 00:01:45]}
Bg4 {[%clk 01:28:04]} {[%emt 00:01:57]} 6. h3 {[%clk 01:29:11]} {[%emt
00:01:39]} Bh5 {[%clk 01:27:20]} {[%emt 00:01:15]} 7. g4 {[%clk 01:27:23]}
{[%emt 00:02:18]} Bg6 {[%clk 01:26:52]} {[%emt 00:00:59]} 8. Ne5 {[%clk
01:26:41]} {[%emt 00:01:11]} c6 {[%clk 01:21:54]} {[%emt 00:05:28]} 9. Bf4
{[%clk 01:25:07]} {[%emt 00:02:03]} Qb4 {[%clk 01:16:18]} {[%emt 00:06:07]} 10.
Nxg6 {[%clk 01:23:10]} {[%emt 00:02:26]} hxg6 {[%clk 01:13:02]} {[%emt
00:03:46]} 11. Rb1 {[%clk 01:16:13]} {[%emt 00:07:28]} e6 {[%clk 01:09:20]}
{[%emt 00:04:12]} 12. Bg2 {[%clk 01:12:26]} {[%emt 00:04:14]} Nbd7 {[%clk
01:05:54]} {[%emt 00:03:59]} 13. O-O {[%clk 01:10:43]} {[%emt 00:02:12]} Be7
{[%clk 00:59:08]} {[%emt 00:07:17]} 14. Re1 {[%clk 01:09:53]} {[%emt 00:01:19]}
Nh7 {[%clk 00:44:09]} {[%emt 00:15:30]} 15. a3 {[%clk 01:07:50]} {[%emt
00:02:33]} Qa5 {[%clk 00:39:11]} {[%emt 00:05:27]} 16. Ne2 {[%clk 01:07:25]}
{[%emt 00:00:55]} Rd8 {[%clk 00:28:00]} {[%emt 00:11:42]} 17. Bg3 {[%clk
01:05:50]} {[%emt 00:02:04]} O-O {[%clk 00:21:59]} {[%emt 00:06:32]} 18. Nf4
{[%clk 01:04:38]} {[%emt 00:01:41]} g5 {[%clk 00:20:46]} {[%emt 00:01:44]} 19.
Nd3 {[%clk 01:04:20]} {[%emt 00:00:33]} Rfe8 {[%clk 00:18:22]} {[%emt
00:03:10]} 20. c3 {[%clk 01:02:57]} {[%emt 00:01:52]} Nhf8 {[%clk 00:16:33]}
{[%emt 00:02:18]} 21. Qb3 {[%clk 01:00:38]} {[%emt 00:02:50]} Nb6 {[%clk
00:13:03]} {[%emt 00:04:00]} 22. Bc7 {[%clk 00:59:13]} {[%emt 00:01:55]} Rc8
{[%clk 00:12:20]} {[%emt 00:01:14]} 23. Bxb6 {[%clk 00:58:22]} {[%emt
00:01:20]} Qxb6 {[%clk 00:12:32]} {[%emt 00:00:18]} 24. Qa2 {[%clk 00:57:15]}
{[%emt 00:01:37]} Ng6 {[%clk 00:11:09]} {[%emt 00:01:53]} 25. Be4 {[%clk
00:56:28]} {[%emt 00:01:16]} Nh4 {[%clk 00:08:25]} {[%emt 00:03:14]} 26. Ne5
{[%clk 00:55:20]} {[%emt 00:01:34]} c5 {[%clk 00:05:57]} {[%emt 00:03:03]} 27.
dxc5 {[%emt 00:08:33]} Bxc5 {[%clk 00:04:00]} {[%emt 00:00:04]} 28. Re2 {[%clk
00:48:24]} {[%emt 00:01:46]} Rcd8 {[%clk 00:03:10]} {[%emt 00:01:20]} 29. b4
{[%clk 00:46:43]} {[%emt 00:02:10]} Be7 {[%clk 00:02:50]} {[%emt 00:00:52]} 30.
c4 {[%clk 00:45:53]} {[%emt 00:01:19]} Qc7 {[%clk 00:03:01]} {[%emt 00:00:18]}
31. Bc2 {[%clk 00:42:11]} {[%emt 00:03:59]} Bf6 {[%clk 00:02:41]} {[%emt
00:01:04]} 32. Rbe1 {[%clk 00:40:20]} {[%emt 00:02:20]} Bxe5 {[%clk 00:02:48]}
{[%emt 00:00:24]} 33. Re3 {[%clk 00:36:26]} {[%emt 00:04:22]} Bd4 {[%clk
00:02:42]} {[%emt 00:00:38]} 34. Rg3 {[%clk 00:35:47]} {[%emt 00:01:07]} Qxg3+
{[%clk 00:02:32]} {[%emt 00:00:41]} 0-1

[Event "Mistrovství Čech mládeže 2023 - HD12"]
[Site "Harrachov, Czech Republic"]
[Date "2023.10.24"]
[Round "5.22"]
[White "Melicharová, Tereza"]
[Black "Štor, Jakub"]
[Result "0-1"]
[TimeControl "90m + 30s"]
[WhiteElo "1088"]
[BlackElo "1275"]

1. d4 {[%clk 01:30:57]} {[%emt 00:00:03]} Nf6 {[%clk 01:30:52]} {[%emt
00:00:08]} 2. Nf3 {[%clk 01:30:58]} {[%emt 00:00:28]} g6 {[%clk 01:31:01]}
{[%emt 00:00:23]} 3. Bf4 {[%clk 01:31:09]} {[%emt 00:00:18]} Bg7 {[%clk
01:31:28]} {[%emt 00:00:03]} 4. e3 {[%clk 01:31:14]} {[%emt 00:00:24]} O-O
{[%clk 01:31:46]} {[%emt 00:00:12]} 5. Nbd2 {[%clk 01:31:23]} {[%emt 00:00:21]}
d6 {[%clk 01:31:44]} {[%emt 00:00:33]} 6. Bd3 {[%clk 01:31:35]} {[%emt
00:00:19]} Nbd7 {[%clk 01:31:17]} {[%emt 00:00:57]} 7. O-O {[%clk 01:31:16]}
{[%emt 00:00:47]} b6 {[%clk 01:31:44]} {[%emt 00:00:04]} 8. c3 {[%clk
01:26:28]} {[%emt 00:05:17]} Bb7 {[%clk 01:32:11]} {[%emt 00:00:04]} 9. Qc2
{[%clk 01:23:35]} {[%emt 00:03:23]} c5 {[%clk 01:30:07]} {[%emt 00:02:34]} 10.
Rfe1 {[%clk 01:20:50]} {[%emt 00:03:14]} a6 {[%clk 01:24:16]} {[%emt 00:06:22]}
11. a4 {[%clk 01:20:06]} {[%emt 00:01:14]} d5 {[%clk 01:23:16]} {[%emt
00:01:29]} 12. c4 {[%clk 01:18:01]} {[%emt 00:02:35]} e6 {[%clk 01:22:20]}
{[%emt 00:01:27]} 13. Rac1 {[%clk 01:14:33]} {[%emt 00:03:58]} Bc6 {[%clk
01:15:22]} {[%emt 00:07:26]} 14. cxd5 {[%clk 01:00:30]} {[%emt 00:14:34]} exd5
{[%clk 01:10:11]} {[%emt 00:05:42]} 15. e4 {[%clk 00:59:59]} {[%emt 00:01:01]}
dxe4 {[%clk 01:08:41]} {[%emt 00:01:59]} 16. Nxe4 {[%clk 00:59:46]} {[%emt
00:00:43]} Bxe4 {[%clk 01:08:46]} {[%emt 00:00:25]} 17. Bxe4 {[%clk 00:59:50]}
{[%emt 00:00:26]} Nxe4 {[%clk 01:09:09]} {[%emt 00:00:07]} 18. Rxe4 {[%clk
00:59:40]} {[%emt 00:00:40]} cxd4 {[%clk 01:03:15]} {[%emt 00:06:24]} 19. Nxd4
{[%clk 00:58:12]} {[%emt 00:01:59]} Nc5 {[%clk 01:02:51]} {[%emt 00:00:54]} 20.
Nc6 {[%clk 00:57:24]} {[%emt 00:01:17]} Qf6 {[%clk 01:00:48]} {[%emt 00:02:33]}
21. Ne7+ {[%clk 00:51:11]} {[%emt 00:06:44]} Kh8 {[%clk 01:00:56]} {[%emt
00:00:22]} 22. Re2 {[%clk 00:50:12]} {[%emt 00:01:28]} Qxf4 {[%clk 00:59:53]}
{[%emt 00:01:33]} 23. Nd5 {[%clk 00:49:32]} {[%emt 00:01:10]} Qxa4 {[%clk
00:58:36]} {[%emt 00:01:47]} 24. Nxb6 {[%clk 00:48:49]} {[%emt 00:01:13]} Qxc2
{[%clk 00:58:22]} {[%emt 00:00:45]} 25. Rexc2 {[%clk 00:47:44]} {[%emt
00:01:35]} Rab8 {[%clk 00:58:36]} {[%emt 00:00:13]} 26. Rxc5 {[%clk 00:47:30]}
{[%emt 00:00:46]} Rxb6 {[%clk 00:58:53]} {[%emt 00:00:14]} 27. Rc8 {[%clk
00:44:36]} {[%emt 00:03:24]} Rb8 {[%clk 00:59:10]} {[%emt 00:00:14]} 28. Rxf8+
{[%clk 00:41:54]} {[%emt 00:03:10]} Bxf8 {[%clk 00:58:36]} {[%emt 00:01:04]} 29.
Rc6 {[%clk 00:41:27]} {[%emt 00:00:57]} Rxb2 {[%clk 00:58:49]} {[%emt
00:00:18]} 30. g3 {[%clk 00:41:30]} {[%emt 00:00:27]} a5 {[%clk 00:58:16]}
{[%emt 00:01:02]} 31. Ra6 {[%clk 00:40:14]} {[%emt 00:01:47]} Ra2 {[%clk
00:57:26]} {[%emt 00:01:20]} 32. h4 {[%clk 00:39:29]} {[%emt 00:01:14]} a4
{[%clk 00:57:00]} {[%emt 00:00:57]} 33. Ra8 {[%clk 00:39:14]} {[%emt 00:00:45]}
Kg7 {[%clk 00:57:19]} {[%emt 00:00:08]} 34. Kf1 {[%clk 00:39:15]} {[%emt
00:00:31]} Bb4 {[%clk 00:56:52]} {[%emt 00:00:55]} 35. Kg2 {[%clk 01:39:26]}
{[%emt 00:01:43]} a3 {[%clk 00:58:41]} {[%emt 00:00:40]} 36. g4 {[%clk
01:39:29]} {[%emt 00:00:27]} Ra1 {[%clk 00:58:36]} {[%emt 00:00:34]} 37. g5
{[%clk 01:38:52]} {[%emt 00:01:07]} h5 {[%clk 00:58:39]} {[%emt 00:00:26]} 38.
Ra4 {[%clk 01:38:36]} {[%emt 00:00:48]} a2 {[%clk 00:58:37]} {[%emt 00:00:33]}
39. f3 {[%clk 01:37:34]} {[%emt 00:01:32]} Bc3 {[%clk 00:58:45]} {[%emt
00:00:21]} 40. Kg3 {[%clk 01:37:21]} {[%emt 00:00:42]} Rg1+ {[%clk 00:59:03]}
{[%emt 00:00:13]} 41. Kf2 {[%clk 01:36:56]} {[%emt 00:00:55]} a1=Q {[%clk
00:59:21]} {[%emt 00:00:12]} 42. Rxa1 {[%clk 01:36:53]} {[%emt 00:00:33]} Rxa1
{[%clk 00:59:43]} {[%emt 00:00:08]} 43. Kg2 {[%clk 01:37:02]} {[%emt 00:00:21]}
f6 {[%clk 01:00:04]} {[%emt 00:00:09]} 44. Kh3 {[%clk 01:37:06]} {[%emt
00:00:26]} Kf7 {[%clk 01:00:09]} {[%emt 00:00:25]} 45. gxf6 {[%clk 01:35:52]}
{[%emt 00:01:43]} Kxf6 {[%clk 01:00:26]} {[%emt 00:00:14]} 46. Kg2 {[%clk
01:36:04]} {[%emt 00:00:17]} Re1 {[%clk 01:00:40]} {[%emt 00:00:16]} 47. Kh3
{[%clk 01:35:53]} {[%emt 00:00:41]} Kf5 {[%clk 01:00:57]} {[%emt 00:00:14]} 48.
Kg2 {[%clk 01:33:11]} {[%emt 00:03:10]} Kf4 {[%clk 01:01:15]} {[%emt 00:00:14]}
49. Kf2 {[%clk 01:33:16]} {[%emt 00:00:25]} Re3 {[%clk 01:01:02]} {[%emt
00:00:41]} 50. Kg2 {[%clk 01:25:49]} {[%emt 00:07:59]} Rxf3 {[%clk 01:01:10]}
{[%emt 00:00:20]} 51. Kg1 {[%clk 01:24:01]} {[%emt 00:02:19]} Kg3 {[%clk
01:01:15]} {[%emt 00:00:25]} 52. Kh1 {[%clk 01:23:41]} {[%emt 00:00:51]} Rf1#
{[%clk 01:01:40]} {[%emt 00:00:05]} 0-1